bitfinex/quotes_BTCUSD_20250127
["timestamp","ask_amount","ask_price","bid_price","bid_amount"]
[1737958675246,0.02601414,100130.0,100120.0,0.16772194]
[1737958675725,0.02601414,100130.0,100120.0,0.17172194]
[1737958676260,0.03201414,100130.0,100120.0,0.15482]
[1737958676414,0.02601414,100130.0,100120.0,0.15382]
[1737958676818,0.02601414,100130.0,100120.0,0.15682]
[1737958677020,0.02601414,100130.0,100120.0,0.15282]
[1737958677342,0.02601414,100130.0,100120.0,0.15582]
[1737958677654,0.02601414,100130.0,100120.0,0.25316729]
[1737958677971,0.02601414,100130.0,100120.0,0.26316729]
[1737958678190,0.02601414,100130.0,100120.0,0.28316729]
[1737958678515,0.02601414,100130.0,100120.0,0.40316729]
[1737958678721,0.02601414,100130.0,100120.0,0.42316729]
[1737958678940,0.02601414,100130.0,100120.0,0.43316729]
[1737958679141,0.02601414,100130.0,100120.0,0.42316729]
[1737958679564,0.00301414,100130.0,100120.0,0.15582]
[1737958680336,0.00301414,100130.0,100120.0,0.006]
[1737958680533,0.52316643,100130.0,100120.0,0.006]
[1737958680748,0.02601414,100130.0,100120.0,0.15582]
[1737958680957,0.17581914,100130.0,100120.0,0.006]
[1737958681347,0.75638984,100130.0,100120.0,0.006]
[1737958681526,0.023,100120.0,100090.0,0.349673]
[1737958681757,0.172835,100110.0,100100.0,0.149849]
[1737958681988,0.172835,100110.0,100090.0,0.399635]
[1737958681989,0.023,100100.0,100090.0,0.199816]
[1737958682194,0.023,100100.0,100080.0,0.399648]
[1737958682479,0.023,100080.0,100070.0,0.149889]
[1737958682694,0.17288,100080.0,100060.0,0.549655]
[1737958682907,0.172911,100060.0,100040.0,0.21481794]
[1737958683151,0.17291,100060.0,100050.0,0.149925]
[1737958683354,0.023,100060.0,100050.0,0.149925]
[1737958683573,0.199854,100080.0,100050.0,0.24727229]
[1737958683779,0.172881,100080.0,100060.0,0.349771]
[1737958684008,0.372721,100080.0,100060.0,0.349771]
[1737958684222,0.172895,100070.0,100050.0,0.44715629]
[1737958684416,0.172895,100070.0,100040.0,0.354846]
[1737958684417,0.149916,100060.0,100040.0,0.354846]
[1737958684664,0.372797,100060.0,100050.0,0.002]
[1737958684877,0.172916,100060.0,100050.0,0.002]
[1737958685081,0.172916,100060.0,100040.0,0.65211229]
[1737958685288,0.023,100060.0,100050.0,0.149925]
[1737958685493,0.17291,100060.0,100050.0,0.001]
[1737958686791,0.023,100050.0,100040.0,0.204914]
[1737958687610,0.172925,100050.0,100040.0,0.005]
[1737958688172,0.023,100050.0,100040.0,0.15794]
[1737958688584,0.023,100050.0,100040.0,0.15494]
[1737958688811,0.250925,100050.0,100040.0,0.005]
[1737958689014,0.101,100050.0,100040.0,0.15494]
[1737958689186,0.023,100050.0,100040.0,0.15494]
[1737958689379,0.023,100050.0,100040.0,0.15594]
[1737958689797,0.0481,100060.0,100050.0,0.149925]
[1737958690004,0.101,100070.0,100060.0,0.14991]
[1737958690206,0.023,100060.0,100050.0,0.149925]
[1737958690413,0.078,100070.0,100050.0,0.24727229]
[1737958690654,0.023,100070.0,100060.0,0.24725729]
[1737958690865,0.1491,100090.0,100080.0,0.14988]
[1737958691071,0.14959605,100090.0,100080.0,0.14988]
[1737958691272,0.023,100080.0,100070.0,0.349729]
[1737958691476,0.172884,100080.0,100060.0,0.44712529]
[1737958691679,0.172884,100080.0,100060.0,0.44711529]
[1737958691908,0.172884,100080.0,100060.0,0.149902]
[1737958691909,0.172895,100070.0,100060.0,0.149902]
[1737958692115,0.172911,100060.0,100040.0,0.50484]
[1737958692313,0.023,100050.0,100040.0,0.15494]
[1737958692517,0.172925,100050.0,100040.0,0.005]
[1737958693116,0.023,100050.0,100040.0,0.15494]
[1737958693399,0.172925,100050.0,100040.0,0.15494]
[1737958693792,0.023,100050.0,100040.0,0.15494]
[1737958693991,0.522764,100070.0,100060.0,0.001]
[1737958694230,0.372764,100070.0,100060.0,0.001]
[1737958694470,0.023,100060.0,100050.0,0.199895]
[1737958695391,0.023,100060.0,100050.0,0.39979]
[1737958695625,0.023,100070.0,100060.0,0.349773]
[1737958695816,0.1261,100090.0,100080.0,0.14988]
[1737958696041,0.101,100110.0,100100.0,0.14985]
[1737958696273,0.10149605,100110.0,100100.0,0.14985]
[1737958696615,0.00049605,100110.0,100100.0,0.24719729]
[1737958697287,0.00049605,100110.0,100100.0,0.25719729]
[1737958697576,0.00349605,100110.0,100100.0,0.25719729]
[1737958697958,0.00349605,100110.0,100100.0,0.27523494]
[1737958698180,0.00049605,100110.0,100100.0,0.27523494]
[1737958699008,0.00049605,100110.0,100100.0,0.42523494]
[1737958699403,0.00271468,100110.0,100100.0,0.26523494]
[1737958699585,0.00049605,100110.0,100100.0,0.16788765]
[1737958699788,0.00049605,100110.0,100100.0,0.16988765]
[1737958699998,0.00275337,100110.0,100100.0,0.16988765]
[1737958700876,0.00275337,100110.0,100100.0,0.15185]
[1737958701111,0.00275337,100110.0,100100.0,0.24919729]
[1737958701322,0.00275337,100110.0,100100.0,0.25919729]
[1737958701536,0.00275337,100110.0,100100.0,0.24919729]
[1737958701961,0.00275337,100110.0,100100.0,0.15185]
[1737958702153,0.17558837,100110.0,100100.0,0.15185]
[1737958702538,0.17558837,100110.0,100100.0,0.002]
[1737958702752,0.22498837,100110.0,100100.0,0.002]
[1737958702953,0.6398656,100110.0,100100.0,0.002]
[1737958703128,0.52285,100100.0,100090.0,0.0001415]
[1737958703329,0.93838224,100100.0,100090.0,0.0001415]
[1737958703552,0.97790849,100100.0,100090.0,0.0001415]
[1737958704404,0.95300849,100100.0,100090.0,0.0001415]
[1737958704638,0.95300849,100100.0,100040.0,0.005]
[1737958704639,0.023,100050.0,100040.0,0.204908]
[1737958706277,0.172925,100050.0,100040.0,0.204908]
[1737958706482,0.023,100050.0,100040.0,0.15494]
[1737958707050,0.024,100050.0,100040.0,0.15694]
[1737958707249,0.001,100050.0,100040.0,0.15894]
[1737958707448,0.297411,100060.0,100050.0,0.149925]
[1737958708081,0.315951,100060.0,100050.0,0.149925]
[1737958708294,0.315951,100060.0,100040.0,0.554762]
[1737958708498,0.515831,100060.0,100040.0,0.554762]
[1737958708720,0.172925,100050.0,100040.0,0.005]
[1737958708922,0.172925,100050.0,100040.0,0.15494]
[1737958709537,0.172925,100050.0,100040.0,0.005]
[1737958709984,0.37027229,100050.0,100040.0,0.005]
[1737958710184,0.52027229,100050.0,100040.0,0.005]
[1737958710399,0.45757229,100050.0,100040.0,0.005]
[1737958710836,0.225095,100010.0,99981.0,0.150028]
[1737958711055,0.0981,100010.0,100000.0,0.15]
[1737958711256,0.248088,100010.0,99991.0,0.200016]
[1737958711457,0.023,100000.0,99980.0,0.00029007]
[1737958711668,0.023,100000.0,99985.0,0.150021]
[1737958711872,0.200002,99999.0,99980.0,0.00029007]
[1737958712071,0.200002,99999.0,99983.0,0.150024]
[1737958712072,0.150012,99992.0,99983.0,0.150024]
[1737958712276,0.150004,99998.0,99985.0,0.150021]
[1737958712483,0.200002,99999.0,99981.0,0.153027]
[1737958712625,0.150011,99993.0,99983.0,0.150024]
[1737958713032,0.200002,99999.0,99981.0,0.003]
[1737958713232,0.150016,99990.0,99981.0,0.003]
[1737958713456,0.150028,99981.0,99980.0,0.00029007]
[1737958714299,0.168568,99981.0,99980.0,0.00029007]
[1737958714499,0.168568,99981.0,99980.0,0.00229007]
[1737958714898,0.01854,99981.0,99980.0,0.00229007]
[1737958715094,0.01854,99981.0,99980.0,0.15032007]
[1737958715298,0.02254,99981.0,99980.0,0.00029007]
[1737958715555,0.02254,99981.0,99980.0,0.15032007]
[1737958715556,0.01854,99981.0,99980.0,0.15032007]
[1737958715760,0.01854,99981.0,99980.0,0.24766736]
[1737958716934,0.02254,99981.0,99980.0,0.00029007]
[1737958717338,0.01854,99981.0,99980.0,0.00129007]
[1737958718174,0.01954,99981.0,99980.0,0.00229007]
[1737958718493,0.01954,99981.0,99980.0,0.00129007]
[1737958718678,0.01954,99981.0,99980.0,0.00329007]
[1737958718864,0.01954,99981.0,99980.0,0.15332007]
[1737958719168,0.01954,99981.0,99980.0,0.25066736]
[1737958719366,0.01954,99981.0,99980.0,0.15332007]
[1737958720612,0.01854,99981.0,99980.0,0.00229007]
[1737958720815,0.01954,99981.0,99980.0,0.00329007]
[1737958721033,0.01954,99981.0,99980.0,0.15132007]
[1737958721242,0.01954,99981.0,99980.0,0.00129007]
[1737958721684,0.01954,99981.0,99980.0,0.15432007]
[1737958722126,0.01954,99981.0,99980.0,0.15132007]
[1737958722326,0.01954,99981.0,99980.0,0.00129007]
[1737958722480,0.01954,99981.0,99980.0,0.15432007]
[1737958722924,0.01954,99981.0,99980.0,0.15132007]
[1737958723238,0.01854,99981.0,99980.0,0.00029007]
[1737958723473,0.168568,99981.0,99980.0,0.00029007]
[1737958723681,0.169568,99981.0,99980.0,0.00129007]
[1737958724497,0.36691529,99981.0,99980.0,0.00429007]
[1737958725272,0.150042,99972.0,99971.0,0.0001416]
[1737958725478,0.26592929,99972.0,99971.0,0.00029057]
[1737958727798,0.27492929,99972.0,99971.0,0.00029057]
[1737958728019,0.02054,99972.0,99971.0,0.00029057]
[1737958728222,0.02054,99972.0,99971.0,0.15033357]
[1737958728460,0.02854,99972.0,99971.0,0.15033357]
[1737958728703,0.02054,99972.0,99971.0,0.15033357]
[1737958728902,0.01854,99972.0,99971.0,0.15033357]
[1737958729108,0.02054,99972.0,99971.0,0.15033357]
[1737958729678,0.01854,99972.0,99971.0,0.15033357]
[1737958729920,0.01854,99972.0,99971.0,0.00029057]
[1737958730111,0.168582,99972.0,99971.0,0.00029057]
[1737958730323,0.02654,99972.0,99971.0,0.00029057]
[1737958730529,0.01854,99972.0,99971.0,0.00029057]
[1737958730736,0.01854,99972.0,99971.0,0.00129057]
[1737958730958,0.01854,99972.0,99971.0,0.15133357]
[1737958731160,0.01854,99972.0,99971.0,0.15033357]
[1737958731391,0.01954,99972.0,99971.0,0.00229057]
[1737958731943,0.01954,99972.0,99971.0,0.15033357]
[1737958732406,0.01954,99972.0,99971.0,0.15133357]
[1737958732643,0.01954,99972.0,99971.0,0.00329057]
[1737958733094,0.01954,99972.0,99971.0,0.15233357]
[1737958734057,0.01954,99972.0,99971.0,0.00229057]
[1737958734301,0.01854,99972.0,99971.0,0.15033357]
[1737958734549,0.01854,99972.0,99971.0,0.15233357]
[1737958734991,0.01854,99972.0,99971.0,0.00229057]
[1737958735249,0.01954,99972.0,99962.0,0.0151897]
[1737958735488,0.01854,99972.0,99971.0,0.150043]
[1737958736245,0.01854,99972.0,99971.0,0.001]
[1737958736498,0.01854,99972.0,99971.0,0.1511846]
[1737958737462,0.01854,99972.0,99971.0,0.24853189]
[1737958737707,0.150055,99963.0,99962.0,0.01568655]
[1737958737935,0.01854,99963.0,99962.0,0.01668655]
[1737958738438,0.01854,99963.0,99962.0,0.01568655]
[1737958738671,0.168595,99963.0,99962.0,0.01568655]
[1737958738941,0.01854,99963.0,99962.0,0.01568655]
[1737958739853,0.01854,99963.0,99962.0,0.01668655]
[1737958740752,0.01854,99963.0,99962.0,0.16674355]
[1737958741878,0.01854,99963.0,99962.0,0.26409084]
[1737958742375,0.01854,99963.0,99962.0,0.01668655]
[1737958742614,0.01854,99963.0,99962.0,0.26309084]
[1737958742888,0.01854,99963.0,99962.0,0.16574355]
[1737958743135,0.01854,99963.0,99962.0,0.01868655]
[1737958743389,0.01854,99963.0,99962.0,0.16874355]
[1737958744092,0.01854,99963.0,99962.0,0.02068655]
[1737958744418,0.01854,99963.0,99962.0,0.17074355]
[1737958744751,0.01854,99963.0,99962.0,0.16874355]
[1737958744973,0.01854,99963.0,99962.0,0.16574355]
[1737958745277,0.01854,99963.0,99962.0,0.16674355]
[1737958745831,0.01854,99963.0,99962.0,0.16774355]
[1737958745980,0.01854,99963.0,99962.0,0.01768655]
[1737958746146,0.01854,99963.0,99962.0,0.16574355]
[1737958746347,0.01854,99963.0,99962.0,0.16774355]
[1737958746563,0.01854,99963.0,99962.0,0.01768655]
[1737958746992,0.168595,99963.0,99962.0,0.01768655]
[1737958747196,0.168595,99963.0,99962.0,0.01868655]
[1737958747397,0.36594229,99963.0,99962.0,0.01868655]
[1737958747625,0.44714229,99963.0,99962.0,0.01868655]
[1737958747872,0.44714229,99963.0,99962.0,0.01568655]
[1737958748053,0.44714229,99963.0,99962.0,0.01782815]
[1737958748220,0.44714229,99963.0,99962.0,0.01882815]
[1737958748421,0.44714229,99963.0,99962.0,0.01682815]
[1737958749030,0.24740229,99963.0,99962.0,0.01682815]
[1737958749965,0.24740229,99963.0,99962.0,0.01182815]
[1737958750380,0.24740229,99963.0,99962.0,0.01082815]
[1737958750734,0.24840229,99963.0,99962.0,0.01082815]
[1737958751076,0.24740229,99963.0,99962.0,0.01082815]
[1737958751272,0.155055,99963.0,99962.0,0.01082815]
[1737958751475,0.156055,99963.0,99962.0,0.01082815]
[1737958751699,0.151055,99963.0,99962.0,0.01082815]
[1737958752095,0.174595,99963.0,99962.0,0.01082815]
[1737958752684,0.27194229,99963.0,99962.0,0.01082815]
[1737958753111,0.02454,99963.0,99962.0,0.16088515]
[1737958753920,0.02354,99963.0,99962.0,0.16088515]
[1737958754349,0.02454,99963.0,99962.0,0.16088515]
[1737958754549,0.01954,99963.0,99962.0,0.16088515]
[1737958754825,0.01954,99963.0,99962.0,0.01082815]
[1737958755044,0.01854,99963.0,99962.0,0.01082815]
[1737958755879,0.01854,99963.0,99962.0,0.01182815]
[1737958756286,0.168595,99963.0,99962.0,0.01182815]
[1737958757207,0.168595,99963.0,99962.0,0.01082815]
[1737958757434,0.168595,99963.0,99962.0,0.01182815]
[1737958757832,0.26594229,99963.0,99962.0,0.01182815]
[1737958758039,0.26694229,99963.0,99962.0,0.01082815]
[1737958758672,0.27094229,99963.0,99962.0,0.01082815]
[1737958758908,0.26594229,99963.0,99962.0,0.01082815]
[1737958759121,0.26694229,99963.0,99962.0,0.01082815]
[1737958759248,0.27294229,99963.0,99962.0,0.01082815]
[1737958759454,0.26694229,99963.0,99962.0,0.01082815]
[1737958759893,0.41694229,99963.0,99962.0,0.01082815]
[1737958760134,0.50352342,99963.0,99962.0,0.01082815]
[1737958760276,0.150073,99951.0,99950.0,0.0001416]
[1737958760493,0.26721113,99951.0,99950.0,0.0001416]
[1737958760694,0.41596029,99951.0,99950.0,0.0001416]
[1737958761549,0.41896029,99951.0,99950.0,0.0001416]
[1737958761745,0.51896029,99951.0,99950.0,0.0001416]
[1737958762281,0.55034889,99951.0,99950.0,0.0001416]
[1737958762486,0.51896029,99951.0,99950.0,0.0001416]
[1737958762700,0.52915308,99951.0,99950.0,0.0001416]
[1737958762876,0.52615308,99951.0,99950.0,0.0001416]
[1737958763453,0.55729034,99951.0,99950.0,0.0001416]
[1737958763660,0.52615308,99951.0,99950.0,0.0001416]
[1737958763865,0.42815308,99951.0,99950.0,0.0001416]
[1737958764093,0.43615308,99951.0,99950.0,0.0001416]
[1737958764864,0.42615308,99951.0,99950.0,0.0001416]
[1737958765065,0.27615308,99951.0,99950.0,0.0001416]
[1737958765247,0.168613,99951.0,99950.0,0.0001416]
[1737958765451,0.170613,99951.0,99950.0,0.0001416]
[1737958765653,0.26796029,99951.0,99950.0,0.0001416]
[1737958765902,0.29796029,99951.0,99950.0,0.0001416]
[1737958766700,0.44796029,99951.0,99950.0,0.0001416]
[1737958767344,0.44596029,99951.0,99950.0,0.0001416]
[1737958767735,0.43996029,99951.0,99950.0,0.0001416]
[1737958768249,0.29496029,99951.0,99950.0,0.0001416]
[1737958768420,0.02054,99951.0,99950.0,0.0001416]
[1737958769083,0.02654,99951.0,99950.0,0.0001416]
[1737958769290,0.168613,99951.0,99950.0,0.0001416]
[1737958769490,0.169613,99951.0,99950.0,0.0001416]
[1737958769631,0.174613,99951.0,99950.0,0.0001416]
[1737958769846,0.197613,99951.0,99950.0,0.0001416]
[1737958770042,0.02454,99951.0,99950.0,0.0001416]
[1737958770256,0.174613,99951.0,99950.0,0.0001416]
[1737958770464,0.02454,99951.0,99950.0,0.0001416]
[1737958770867,0.01954,99951.0,99950.0,0.1502166]
[1737958771108,0.01854,99951.0,99950.0,0.1502166]
[1737958771288,0.02254,99951.0,99950.0,0.0001416]
[1737958771899,0.02154,99951.0,99950.0,0.0001416]
[1737958773700,0.194613,99951.0,99950.0,0.0001416]
[1737958774004,0.02154,99951.0,99950.0,0.0001416]
[1737958774612,0.171613,99951.0,99950.0,0.0001416]
[1737958774833,0.02154,99951.0,99950.0,0.0001416]
[1737958775035,0.02154,99951.0,99950.0,0.1502166]
[1737958775395,0.02154,99951.0,99950.0,0.0001416]
[1737958776845,0.02154,99951.0,99950.0,0.1502166]
[1737958777854,0.01854,99951.0,99950.0,0.1502166]
[1737958778060,0.01854,99951.0,99950.0,0.0011416]
[1737958778242,0.01854,99951.0,99950.0,0.0031416]
[1737958778441,0.01854,99951.0,99950.0,0.0011416]
[1737958778655,0.01854,99951.0,99950.0,0.1502166]
[1737958778823,0.01854,99951.0,99950.0,0.1532166]
[1737958779044,0.01854,99951.0,99950.0,0.24856389]
[1737958779486,0.01854,99951.0,99950.0,0.25056389]
[1737958779626,0.01854,99951.0,99950.0,0.24856389]
[1737958780582,0.01854,99951.0,99950.0,0.24756389]
[1737958780785,0.51879,99951.0,99950.0,0.24856389]
[1737958780960,0.5150689,99951.0,99950.0,0.24856389]
[1737958781159,0.5150689,99951.0,99950.0,0.25056389]
[1737958781364,0.5150689,99951.0,99950.0,0.24756389]
[1737958781544,0.5150689,99951.0,99950.0,0.1502166]
[1737958781756,0.5150689,99951.0,99950.0,0.1522166]
[1737958781939,0.5150689,99951.0,99950.0,0.15256828]
[1737958782146,0.5150689,99951.0,99950.0,0.15456828]
[1737958782553,0.5150689,99951.0,99950.0,0.15256828]
[1737958782752,0.5150689,99951.0,99950.0,0.15456828]
[1737958783583,0.5150689,99951.0,99950.0,0.24991557]
[1737958783985,0.5150689,99951.0,99950.0,0.25091557]
[1737958784353,0.5150689,99951.0,99950.0,0.24791557]
[1737958784558,0.5150689,99951.0,99950.0,0.24991557]
[1737958784752,0.5150689,99951.0,99950.0,0.25191557]
[1737958785736,0.5150689,99951.0,99950.0,0.24991557]
[1737958785937,0.38805461,99951.0,99950.0,0.42991557]
[1737958786140,0.00029736,99981.0,99962.0,0.300057]
[1737958786339,0.00029736,99981.0,99980.0,0.24737729]
[1737958786545,0.00029736,99981.0,99980.0,0.15003]
[1737958786748,0.00029736,99981.0,99950.0,0.00249328]
[1737958786931,0.00029736,99962.0,99961.0,0.150058]
[1737958787450,0.50048736,99962.0,99961.0,0.150058]
[1737958788048,0.50048736,99962.0,99957.0,0.150063]
[1737958788263,0.50048736,99962.0,99950.0,0.0009889]
[1737958788264,0.150069,99954.0,99950.0,0.0009889]
[1737958788523,0.50019,99954.0,99950.0,0.0009889]
[1737958788658,0.650259,99954.0,99950.0,0.0009889]
[1737958788865,0.50019,99954.0,99950.0,0.0009889]
[1737958789496,0.150071,99953.0,99950.0,0.0009889]
[1737958789693,0.150073,99951.0,99950.0,0.0009889]
[1737958789954,0.650263,99951.0,99950.0,0.0009889]
[1737958790135,0.673263,99951.0,99950.0,0.0009889]
[1737958790406,0.77061029,99951.0,99950.0,0.0009889]
[1737958790604,0.77061029,99951.0,99950.0,0.0029889]
[1737958790903,0.77061029,99951.0,99950.0,0.0009889]
[1737958791122,0.77061029,99951.0,99950.0,0.0029889]
[1737958791323,0.77061029,99951.0,99950.0,0.0059889]
[1737958791529,0.77061029,99951.0,99950.0,0.0009889]
[1737958792011,0.80791029,99951.0,99950.0,0.0019889]
[1737958793146,0.150088,99941.0,99914.0,0.150128]
[1737958793348,0.673278,99941.0,99914.0,0.150128]
[1737958793552,0.99922529,99941.0,99899.0,0.200201]
[1737958793805,1.04752529,99941.0,99902.0,0.150146]
[1737958794050,1.14752529,99941.0,99899.0,0.200201]
[1737958794283,1.14752529,99941.0,99940.0,0.0012116]
[1737958795003,1.14752529,99941.0,99940.0,0.0002116]
[1737958795233,1.15352529,99941.0,99940.0,0.0012116]
[1737958795478,1.14852529,99941.0,99940.0,0.0002116]
[1737958795700,1.18391389,99941.0,99940.0,0.0012116]
[1737958795955,1.07296448,99941.0,99940.0,0.0012116]
[1737958796197,1.10135402,99941.0,99940.0,0.0012116]
[1737958796856,1.20135402,99941.0,99940.0,0.0012116]
[1737958797103,1.23274262,99941.0,99940.0,0.0012116]
[1737958797349,1.13374262,99941.0,99940.0,0.0012116]
[1737958797594,1.10235402,99941.0,99940.0,0.0012116]
[1737958798081,0.98456754,99941.0,99940.0,0.0012116]
[1737958799098,1.08191483,99941.0,99940.0,0.0012116]
[1737958800379,0.746118,99941.0,99940.0,0.0012116]
[1737958800583,0.52473,99941.0,99940.0,0.0012116]
[1737958800785,0.697818,99941.0,99940.0,0.0012116]
[1737958800965,0.79516529,99941.0,99940.0,0.0012116]
[1737958801345,0.79416529,99941.0,99940.0,0.0012116]
[1737958801585,0.78916529,99941.0,99940.0,0.0002116]
[1737958801825,0.669818,99941.0,99940.0,0.0002116]
[1737958801968,0.52473,99941.0,99940.0,0.1513016]
[1737958802142,0.51973,99941.0,99940.0,0.1503016]
[1737958802395,0.51973,99941.0,99940.0,0.24764889]
[1737958802756,0.692818,99941.0,99940.0,0.0002116]
[1737958803163,0.674818,99941.0,99940.0,0.0012116]
[1737958803370,0.52373,99941.0,99940.0,0.0012116]
[1737958803784,0.52473,99941.0,99940.0,0.0012116]
[1737958803988,0.51973,99941.0,99940.0,0.1503016]
[1737958804190,0.51873,99941.0,99940.0,0.1503016]
[1737958804452,0.51873,99941.0,99940.0,0.0002116]
[1737958804866,0.51873,99941.0,99940.0,0.1503016]
[1737958805072,0.51973,99941.0,99940.0,0.24764889]
[1737958805282,0.51873,99941.0,99940.0,0.24764889]
[1737958807341,0.51873,99941.0,99940.0,0.2616534]
[1737958807549,0.51873,99941.0,99940.0,0.2606534]
[1737958807743,0.51873,99941.0,99940.0,0.2576534]
[1737958807946,0.51873,99941.0,99940.0,0.2586534]
[1737958808145,0.51873,99941.0,99940.0,0.44580702]
[1737958808479,0.51873,99941.0,99940.0,0.44680702]
[1737958808677,0.51873,99941.0,99940.0,0.45780702]
[1737958808908,0.51873,99941.0,99940.0,0.44680702]
[1737958809322,0.51873,99941.0,99940.0,0.44780702]
[1737958809734,0.50019,99941.0,99940.0,0.45680702]
[1737958809953,0.50019,99941.0,99940.0,0.43780702]
[1737958810372,0.50019,99941.0,99940.0,0.42780702]
[1737958810622,0.50019,99941.0,99940.0,0.42580702]
[1737958810825,0.50019,99941.0,99940.0,0.27580702]
[1737958811054,0.50119,99941.0,99940.0,0.27480251]
[1737958811236,0.50019,99941.0,99940.0,0.1523016]
[1737958811444,0.50119,99941.0,99940.0,0.1573016]
[1737958811649,0.674278,99941.0,99940.0,0.0072116]
[1737958811894,0.720278,99941.0,99940.0,0.0022116]
[1737958812098,0.81762529,99941.0,99940.0,0.0062116]
[1737958812515,0.81762529,99941.0,99940.0,0.0022116]
[1737958812721,0.81762529,99941.0,99920.0,0.08765183]
[1737958812722,0.200154,99923.0,99920.0,0.08765183]
[1737958812877,0.173118,99921.0,99920.0,0.08765183]
[1737958813086,0.673308,99921.0,99920.0,0.08765183]
[1737958813667,0.691848,99921.0,99920.0,0.08765183]
[1737958813881,0.54173,99921.0,99920.0,0.08765183]
[1737958814062,0.691848,99921.0,99920.0,0.08770153]
[1737958814422,0.691848,99921.0,99920.0,0.08970153]
[1737958814630,0.691848,99921.0,99920.0,0.09370153]
[1737958816324,0.54173,99921.0,99920.0,0.24382153]
[1737958816529,0.54173,99921.0,99920.0,0.09370153]
[1737958816736,0.54173,99921.0,99920.0,0.0060497]
[1737958818436,0.581804,99921.0,99920.0,0.0060497]
[1737958819137,0.581804,99921.0,99920.0,0.1561697]
[1737958819351,0.581804,99921.0,99920.0,0.0060497]
[1737958820129,0.731922,99921.0,99920.0,0.0060497]
[1737958821426,0.581804,99921.0,99920.0,0.0060497]
[1737958822613,0.51873,99921.0,99920.0,0.1561697]
[1737958823012,0.51873,99921.0,99920.0,0.0060497]
[1737958823159,0.54173,99921.0,99920.0,0.0061913]
[1737958823344,0.691848,99921.0,99920.0,0.0061913]
[1737958824375,0.54173,99921.0,99920.0,0.0061913]
[1737958824581,0.691848,99921.0,99920.0,0.0061913]
[1737958825377,0.54173,99921.0,99920.0,0.0061913]
[1737958825570,0.54004123,99921.0,99920.0,0.0061913]
[1737958826418,0.69015923,99921.0,99920.0,0.0061913]
[1737958827876,0.54004123,99921.0,99920.0,0.0061913]
[1737958829099,0.51704123,99921.0,99920.0,0.0061913]
[1737958829483,0.66715923,99921.0,99920.0,0.0061913]
[1737958829932,0.69015923,99921.0,99920.0,0.0061913]
[1737958830976,0.69015923,99921.0,99920.0,0.0021913]
[1737958831389,0.54004123,99921.0,99920.0,0.0061913]
[1737958831596,0.54004123,99921.0,99920.0,0.0041913]
[1737958831969,0.51704123,99921.0,99920.0,0.0041913]
[1737958832126,0.52041153,99921.0,99920.0,0.0041913]
[1737958832332,0.69352953,99921.0,99920.0,0.0041913]
[1737958833626,0.69352953,99921.0,99920.0,0.0061913]
[1737958834259,0.69352953,99921.0,99920.0,0.0001913]
[1737958834374,0.69352953,99921.0,99920.0,0.0011913]
[1737958834579,0.69352953,99921.0,99920.0,0.0021913]
[1737958834805,0.69352953,99921.0,99920.0,0.0011913]
[1737958835471,0.69352953,99921.0,99920.0,0.0021913]
[1737958838878,0.54341153,99921.0,99920.0,0.0021913]
[1737958839702,0.52041153,99921.0,99920.0,0.1523113]
[1737958840017,0.52041153,99921.0,99920.0,0.0011913]
[1737958840201,0.52041153,99921.0,99920.0,0.1513113]
[1737958840643,0.52041153,99921.0,99920.0,0.1533113]
[1737958841822,0.52041153,99921.0,99920.0,0.25065859]
[1737958842268,0.52041153,99921.0,99920.0,0.27087043]
[1737958842469,0.36996319,99921.0,99920.0,0.43087043]
[1737958842687,0.00029736,99940.0,99939.0,0.150091]
[1737958842885,0.00029736,99962.0,99961.0,0.150058]
[1737958843098,0.004004,99996.0,99980.0,0.15003]
[1737958843392,0.004004,99996.0,99980.0,0.24737729]
[1737958843669,0.0891518,100010.0,99980.0,0.24737729]
[1737958843670,0.023,100000.0,99980.0,0.24737729]
[1737958843867,0.00020081,99981.0,99980.0,0.24761247]
[1737958844244,0.00069643,99981.0,99980.0,0.15026518]
[1737958844908,0.00169643,99981.0,99980.0,0.00823518]
[1737958845118,0.00069643,99981.0,99980.0,0.00023518]
[1737958845481,0.27207172,99981.0,99980.0,0.00023518]
[1737958845833,0.7999658,99981.0,99980.0,0.00023518]
[1737958846063,0.69236443,99981.0,99980.0,0.00023518]
[1737958846266,0.51933643,99981.0,99980.0,0.15026518]
[1737958846449,0.51933643,99981.0,99980.0,0.00023518]
[1737958847231,0.51933643,99981.0,99980.0,0.00423518]
[1737958847426,0.51933643,99981.0,99980.0,0.00023518]
[1737958847798,0.52333643,99981.0,99980.0,0.00023518]
[1737958848001,0.52033643,99981.0,99980.0,0.00023518]
[1737958848197,0.78971172,99981.0,99980.0,0.00023518]
[1737958848399,0.69186443,99981.0,99980.0,0.00023518]
[1737958848646,0.69186443,99981.0,99980.0,0.00123518]
[1737958848851,0.69186443,99981.0,99980.0,0.00023518]
[1737958850318,0.69513999,99981.0,99980.0,0.00123518]
[1737958850646,0.69513999,99981.0,99980.0,0.00023518]
[1737958852431,0.54511199,99981.0,99980.0,0.00023518]
[1737958852622,0.69513999,99981.0,99980.0,0.00023518]
[1737958852760,0.54511199,99981.0,99980.0,0.00023518]
[1737958852964,0.69513999,99981.0,99980.0,0.00023518]
[1737958853408,0.54511199,99981.0,99980.0,0.00023518]
[1737958854243,0.69513999,99981.0,99980.0,0.00023518]
[1737958855021,0.54511199,99981.0,99980.0,0.00023518]
[1737958855476,0.52211199,99981.0,99980.0,0.00023518]
[1737958856112,0.52211199,99981.0,99980.0,0.15026518]
[1737958856260,0.52211199,99981.0,99980.0,0.24761247]
[1737958856459,0.51883643,99981.0,99980.0,0.24761247]
[1737958856687,0.52211398,99981.0,99980.0,0.24761247]
[1737958857531,0.52211398,99981.0,99980.0,0.25061247]
[1737958857899,0.52211398,99981.0,99980.0,0.24775407]
[1737958858286,0.52241134,99981.0,99980.0,0.24775407]
[1737958858666,0.52341134,99981.0,99980.0,0.25275407]
[1737958858868,0.52341134,99981.0,99980.0,0.25275406]
[1737958859082,0.52341134,99981.0,99980.0,0.25475406]
[1737958860250,0.52241134,99981.0,99980.0,0.24975406]
[1737958860459,0.52241134,99981.0,99980.0,0.48585406]
[1737958860642,0.52341134,99981.0,99980.0,0.48385405]
[1737958861022,0.52341134,99981.0,99980.0,0.49385405]
[1737958861192,0.40712336,99981.0,99980.0,0.51585405]
[1737958861516,0.38194265,99981.0,99980.0,0.47985405]
[1737958861721,0.38294265,99981.0,99980.0,0.45188279]